lending/lending_fUSD_20240610
["ID","MTS","AMOUNT","RATE_DAILY","PERIOD"]
[328999387,1718050275128,-590.42,0.00029041,4]
[328999388,1718050275138,-500.0,0.00029041,4]
[328999389,1718050275148,-590.42,0.00029041,4]
[328999390,1718050275157,-500.0,0.00029041,4]
[328999391,1718050275167,-590.42,0.00029041,4]
[328999392,1718050275177,-500.0,0.00029041,4]
[328999393,1718050275188,-590.42,0.00029041,4]
[328999394,1718050275198,-500.0,0.00029041,4]
[328999395,1718050275208,-7011.43041172,0.000293,5]
[328999396,1718050275220,-2497.79507697,0.000293,5]
[328999397,1718050275231,-6112.69279021,0.000293,5]
[328999398,1718050275244,-541.72179993,0.000293,5]
[328999399,1718050275256,-867.22167318,0.000293,5]
[328999400,1718050275268,-32951.44758523,0.000293,5]
[328999401,1718050275281,-30796.62504182,0.000293,5]
[328999402,1718050275306,-0.00898172,0.000293,5]
[328999403,1718050275317,-235681.67277337,0.000293,5]
[328999404,1718050275329,-322.4357515,0.000293,5]
[328999405,1718050275341,-13513.4435892,0.000293,5]
[328999406,1718050275352,-42025.40213143,0.000293,5]
[328999407,1718050275469,-204.14226081,0.00017258,2]
[328999408,1718050275479,-545.84909757,0.00017259,2]
[328999409,1718050275489,-270.84495805,0.00017259,2]
[328999410,1718050275500,-86.60215975,0.00017259,2]
[328999411,1718050275511,-267.07925774,0.0002904,2]
[328999412,1718050275524,-25.10962896,0.00029041,4]
[328999413,1718050275536,-565.31037104,0.00029041,4]
[328999414,1718050275546,-500.0,0.00029041,4]
[328999415,1718050275556,-28412.53900689,0.000293,5]
[328999416,1718050275568,-32344.28612523,0.000293,5]
[328999417,1718050275581,-99234.34831582,0.000293,5]
[328999418,1718050275593,-47370.02553739,0.000293,5]
[328999419,1718050275605,-50982.42273244,0.000293,5]
[328999420,1718050275617,-3286.65680758,0.000293,5]
[328999421,1718050275629,-347.61885,0.000293,5]
[328999422,1718050275641,-1418.946,0.000293,5]
[328999423,1718050275653,-3121.21721974,0.000293,5]
[328999424,1718050275665,-1445.79537846,0.000293,5]
[328999425,1718050275677,-1308.14435,0.000293,5]
[328999426,1718050275690,-3920.780729,0.000293,5]
[328999427,1718050275914,-12718.08216078,0.000293,5]
[328999428,1718050275926,-1313.87865291,0.000293,5]
[328999429,1718050275938,-322.51994525,0.000293,5]
[328999430,1718050275951,-644.58765686,0.000293,5]
[328999433,1718050370749,200.0,0.0002548,30]
[328999436,1718050432401,554.0,0.00010836,2]
[328999438,1718050438926,844.0,0.00010836,2]
[328999442,1718051042912,-282.95218659,0.00012338,2]
[328999443,1718051042947,-659.07845299,0.00012338,2]
[328999444,1718051042982,-201.67489333,0.00012338,2]
[328999445,1718051043019,-300.0,0.00012339,2]
[328999446,1718051043052,-365.45085217,0.00012339,2]
[328999447,1718051043085,-1000.0,0.00012339,2]
[328999448,1718051043120,-1490.2486096,0.00012339,2]
[328999449,1718051043152,-490.61954782,0.0001234,2]
[328999450,1718051043187,-155.0,0.0001234,2]
[328999451,1718051043222,-645.83379313,0.0001234,2]
[328999452,1718051043256,-1392.58693338,0.00012341,2]
[328999453,1718051043289,-263.84998264,0.00012341,2]
[328999454,1718051043321,-1249.34786736,0.00012342,2]
[328999455,1718051043359,-217.44360157,0.00012343,2]
[328999456,1718051043391,-8421.50868744,0.00012343,2]
[328999457,1718051044362,238.21449077,0.00012337,2]
[328999458,1718051059063,-1909.0446,0.00012356,2]
[328999459,1718051059096,-10977.35791684,0.000124,2]
[328999460,1718051241190,-187.11913362,0.00016958,2]
[328999464,1718051433078,-645.83379313,0.00016952,2]
[328999465,1718051433088,-282.95218659,0.00016953,2]
[328999466,1718051433101,-819.07094486,0.00016954,2]
[328999467,1718051433115,-671.17766474,0.00016954,2]
[328999468,1718051433126,-1790.00464579,0.00016954,2]
[328999469,1718051433151,-112.88086638,0.00016958,2]
[328999470,1718051433169,-1320.62332091,0.00017257,2]
[328999471,1718051433180,-176.3162326,0.00017258,2]
[328999472,1718051433191,-157.79804973,0.00017258,2]
[328999473,1718051433204,-312.94,0.00019449,2]
[328999474,1718051433225,-319.69,0.0001945,2]
[328999475,1718051433236,-466.32,0.0001945,2]
[328999476,1718051433247,-1381.23427469,0.00019452,2]
[328999504,1718051442725,-217.44360157,0.00016951,2]
[328999505,1718051442737,-1941.7314,0.00019352,2]
[328999506,1718051442747,-2268.12863756,0.00019452,2]
[328999507,1718051442802,-817.20196876,0.00019452,2]
[328999508,1718051442817,-5533.42511899,0.00019452,2]
[328999509,1718051442833,-937.27,0.00019452,2]
[328999510,1718051442844,-303.65,0.00019452,2]
[328999511,1718051442858,-499.99,0.00019726,2]
[328999512,1718051442880,-201.05523983,0.00021188,2]
[328999513,1718051442894,-1780.52267679,0.00021188,2]
[328999514,1718051442908,-397.93,0.00021377,2]
[328999515,1718051442931,-399.0,0.000222,5]
[328999516,1718051442950,-200.0,0.00022215,2]
[328999517,1718051442981,-13504.3976117,0.00022275,2]
[328999518,1718051442994,-1416.415,0.00022275,2]
[328999519,1718051443010,-583.75805575,0.00022275,2]
[328999520,1718051443042,-180.35875155,0.00022283,2]
[328999521,1718051443058,-157.53992812,0.00022283,2]
[328999522,1718051443068,-156.12580805,0.00022283,2]
[328999523,1718051443080,-328.78739308,0.00022283,2]
[328999524,1718051443092,-662.09701669,0.00022283,2]
[328999525,1718051443111,-157.75831803,0.00022283,2]
[328999526,1718051443130,-236.4261917,0.00022283,2]
[328999527,1718051443140,-4981.41035674,0.00022283,2]
[328999528,1718051443158,-2033.5382367,0.00022283,2]
[328999529,1718051443169,-338.88012302,0.00022283,2]
[328999530,1718051443179,-1312.13137545,0.00022284,2]
[328999531,1718051443190,-317.56615854,0.00022284,2]
[328999532,1718051443200,-207.63727306,0.00022284,2]
[328999533,1718051443210,-2259.77938452,0.00022285,2]
[328999535,1718051443223,-1700.0,0.00022285,2]
[328999536,1718051443235,-19930.22061548,0.00022285,2]
[328999537,1718051443245,-1000.0,0.00022304,2]
[328999538,1718051443255,-4351.26,0.00022408,2]
[328999539,1718051443266,-161.16,0.00023064,2]
[328999540,1718051443276,-250.0,0.00023186,2]
[328999541,1718051443288,-617.88,0.00023271,2]
[328999542,1718051443301,-250.0,0.00023323,2]
[328999543,1718051443311,-250.0,0.00023438,2]
[328999544,1718051443321,-150.0,0.00023442,2]
[328999545,1718051443332,-722.0,0.000236,2]
[328999549,1718051443343,-172.17,0.000236,2]
[328999553,1718051443355,-397.93,0.00023641,2]
[328999558,1718051443366,-3057.0,0.000237,2]
[328999563,1718051443376,-172.17,0.00023846,2]
[328999568,1718051443393,-172.17,0.00024092,2]
[328999572,1718051443404,-172.17,0.00024338,2]
[328999575,1718051443414,-155.22,0.00024384,2]
[328999578,1718051443426,-172.57,0.00024384,2]
[328999581,1718051443436,-172.17,0.00024584,2]
[328999585,1718051443451,-172.17,0.0002483,2]
[328999588,1718051443463,-706.630092,0.00025,2]
[328999591,1718051443474,-1000.0,0.00025092,2]
[328999594,1718051443483,-172.33,0.00025359,2]
[328999597,1718051443494,-1204.22599662,0.0002548,2]
[328999600,1718051443504,-258.13957769,0.0002548,2]
[328999603,1718051443515,-397.93,0.00025905,2]
[328999606,1718051443525,-1500.0,0.00026,2]
[328999610,1718051443537,-201.352535,0.00026,2]
[328999614,1718051443555,-152.84905972,0.00026237,2]
[328999617,1718051443568,-151.79644714,0.00026473,2]
[328999621,1718051443582,-154.70928417,0.00026555,2]
[328999625,1718051443592,-154.70928417,0.0002661,2]
[328999629,1718051443603,-154.70928417,0.00026636,2]
[328999632,1718051443615,-162.22943554,0.0002672,2]
[328999634,1718051443626,-154.70928417,0.00026777,2]
[328999636,1718051443636,-152.84905972,0.00026779,2]
[328999638,1718051443646,-160.6958182,0.00026896,2]
[328999640,1718051443656,-151.79644714,0.00026981,2]
[328999642,1718051443666,-152.30070605,0.00026984,2]
[328999644,1718051443677,-154.70928417,0.00026996,2]
[328999646,1718051443687,-7848.8309752,0.00027046,2]
[328999648,1718051443697,-321.19407357,0.00027046,2]
[328999650,1718051443709,-468.28790593,0.0002707,2]
[328999652,1718051443720,-152.30070605,0.00027097,2]
[328999654,1718051443730,-471.45,0.00027101,3]
[328999656,1718051443740,-463.7944914,0.0002711,2]
[328999658,1718051443752,-147562.76280547,0.00027111,2]
[328999660,1718051443765,-626.85191041,0.00027111,2]
[328999662,1718051443777,-881.03946832,0.00027111,2]
[328999670,1718051443859,-0.00104918,0.00027111,2]
[328999673,1718051443885,-246001.55376825,0.00027111,2]
[328999681,1718051443999,-25546.20383689,0.00027111,2]
[328999694,1718051444127,-4862.83818037,0.00027111,2]
[328999696,1718051444139,-20958.62678409,0.00027111,2]
[328999698,1718051444150,-154.70928417,0.00027146,2]
[328999700,1718051444160,-152.71711912,0.00027152,2]
[328999702,1718051444170,-165.82225553,0.00027222,2]
[328999704,1718051444180,-154.70928417,0.00027305,2]
[328999706,1718051444190,-7848.83097516,0.00027363,2]
[328999708,1718051444201,-468.28790593,0.00027384,2]
[328999710,1718051444212,-154.70928417,0.00027393,2]
[328999712,1718051444223,-321.19407355,0.00027522,2]
[328999714,1718051444233,-154.6686237,0.00027613,2]
[328999716,1718051444244,-7848.83097516,0.0002768,2]
[328999718,1718051444254,-468.28790593,0.00027699,2]
[328999720,1718051444265,-154.70928417,0.00027719,2]
[328999722,1718051444277,-164.1885196,0.00027859,2]
[328999726,1718051444307,-1000.0,0.0002788,2]
[328999728,1718051444328,-150.0,0.00027965,2]
[328999730,1718051444339,-7848.83097516,0.00027997,2]
[328999732,1718051444349,-321.19407355,0.00027997,2]
[328999734,1718051444359,-200.0,0.00028,2]
[328999736,1718051444375,-468.28790593,0.00028013,2]
[328999738,1718051444387,-160.0,0.00028066,120]
[328999740,1718051444398,-164.1885196,0.00028143,2]
[328999742,1718051444408,-397.93,0.00028169,2]
[328999744,1718051444419,-7848.83097516,0.00028314,2]
[328999746,1718051444432,-468.28790593,0.00028328,2]
[328999748,1718051444449,-151.79644714,0.00028361,2]
[328999750,1718051444462,-155.0,0.000284,2]
[328999753,1718051444474,-150.0,0.000284,2]
[328999755,1718051444491,-150.0,0.00028422,18]
[328999757,1718051444502,-150.0,0.00028428,2]
[328999759,1718051444513,-3662.56219869,0.000285,3]
[328999761,1718051444527,-190.59180867,0.000285,2]
[328999763,1718051444538,-154.6686237,0.00028504,2]
[328999765,1718051444553,-400.000001,0.00028548,30]
[328999767,1718051444573,-154.70928417,0.0002857,2]
[328999769,1718051444587,-1500.0,0.00028591,2]
[328999771,1718051444599,-200.0,0.000286,10]
[328999773,1718051444614,-150.0,0.0002862,2]
[328999774,1718051444633,-300.0,0.00028623,2]
[328999776,1718051444643,-7848.83097516,0.00028632,2]
[328999778,1718051444654,-150.0,0.00028639,2]
[328999780,1718051444671,-468.28790593,0.00028642,2]
[328999782,1718051444684,-150.0,0.00028666,2]
[328999784,1718051444696,-154.70928417,0.00028669,2]
[328999786,1718051444710,-150.0,0.00028694,2]
[328999787,1718051444724,-500.0,0.000287,10]
[328999790,1718051444738,-855.0,0.00028767,7]
[328999791,1718051444748,-150.0,0.0002877,2]
[328999793,1718051444759,-300.0,0.00028773,2]
[328999795,1718051444778,-300.0,0.00028795,2]
[328999797,1718051444793,-150.0,0.000288,2]
[328999799,1718051444803,-700.0,0.000288,10]
[328999801,1718051444813,-300.0,0.00028831,2]
[328999803,1718051444825,-168.49355886,0.00028841,2]
[328999805,1718051444836,-704.1281654,0.00028841,2]
[328999807,1718051444846,-219.61,0.00028849,3]
[328999809,1718051444856,-176.47864197,0.00028887,2]
[328999811,1718051444866,-704.12816538,0.00028891,2]
[328999813,1718051444876,-1000.0,0.000289,10]
[328999815,1718051444887,-252.83554621,0.0002892,2]
[328999817,1718051444897,-2470.32707377,0.0002893,2]
[328999819,1718051444910,-2542.68157995,0.0002893,2]
[328999825,1718051444963,-1413.14647717,0.0002893,2]
[328999830,1718051445002,-1889.08592415,0.00028857,2]
[328999833,1718051445027,-210.34297437,0.00028857,2]
[328999835,1718051445037,-217.96301355,0.0002893,2]
[328999838,1718051445053,-422.8334125,0.0002893,2]
[328999840,1718051445067,-433.04844306,0.0002893,2]
[328999842,1718051445078,-3774.33776952,0.00028931,2]
[328999844,1718051445091,-8687.83513048,0.00028931,2]
[328999846,1718051445101,-277.887,0.00028931,2]
[328999848,1718051445111,-8227.01376669,0.00028931,2]
[328999851,1718051445124,-14155.38201397,0.00028931,2]
[328999855,1718051445158,-194.01365732,0.00027046,2]
[328999857,1718051445168,-6870.18634269,0.00028931,2]
[328999859,1718051445180,-2799.38096288,0.00028931,2]
[328999862,1718051445197,-67948.03691377,0.00028931,2]
[328999864,1718051445207,-165.9056619,0.00028931,2]
[328999866,1718051445217,-151.26,0.00028931,2]
[328999868,1718051445228,-151.26,0.00028931,2]
[328999870,1718051445238,-151.26,0.00028931,2]
[328999872,1718051445248,-159.19892589,0.00028936,2]
[328999874,1718051445258,-35050.169538,0.00028941,13]
[328999876,1718051445269,-704.12816538,0.00028941,2]
[328999878,1718051445281,-10000.0,0.00028941,2]
[328999879,1718051445295,-1000.0,0.00028941,2]
[328999880,1718051445305,-500.0,0.00028941,2]
[328999881,1718051445317,-19769.9372,0.00028941,2]
[328999882,1718051445328,-150010.69779569,0.00028941,2]
[329000067,1718051447253,-0.01618225,0.00028665,2]
[329000069,1718051447268,-305.86748721,0.00028665,2]
[329000071,1718051447287,-169.3784471,0.00028941,2]
[329000074,1718051447309,-4435.79394895,0.00028941,2]
[329000076,1718051447322,-11533.44016689,0.00028941,2]
[329000078,1718051447337,-5621.5707,0.00028941,2]
[329000087,1718051447433,-1563.91,0.00028941,2]
[329000089,1718051447446,-12495.16196,0.00028941,2]
[329000196,1718051448509,-0.0010876,0.00028941,2]
[329000661,1718052463223,-4444.93399819,0.00012746,2]
[329000662,1718052463256,-282.95218659,0.00012746,2]
[329000663,1718052463289,-864.61064937,0.00012747,2]
[329000664,1718052463324,-9221.0951137,0.00012747,2]
[329000665,1718052463356,-35488.4458509,0.00012748,2]
[329000666,1718052463388,-151.39412324,0.00012755,2]
[329000667,1718052463421,-150.0,0.00012822,2]
[329000668,1718052463456,-1394.90153986,0.00012846,2]
[329000669,1718052463487,-443.4070616,0.0001286,2]
[329000670,1718052463520,-3338.42722587,0.00012966,2]
[329000671,1718052463554,-499.99,0.00012966,2]
[329000672,1718052463587,-266.32,0.00012966,2]
[329000673,1718052463619,-7409.01,0.00012966,2]
[329000674,1718052463656,-786.3940397,0.00012972,2]
[329000675,1718052463689,-8193.3,0.00012972,2]
[329000676,1718052463723,-4615.31940654,0.00012978,2]
[329000677,1718052463756,-1266.39461779,0.00012979,2]
[329000678,1718052463789,-34161.68158199,0.0001298,2]
[329000679,1718052463823,-150.99,0.0001298,2]
[329000680,1718052474633,-396.29481277,0.000139,2]
[329000681,1718052474670,-288.18130188,0.00013999,2]
[329000682,1718052474704,-155.0,0.00013999,2]
[329000683,1718052474738,-531.27413985,0.00013999,2]
[329000684,1718052474776,-450409.55660788,0.00014,2]
[329000685,1718052485221,-266.20810594,0.00013998,2]
[329000686,1718052485252,-7842.59371579,0.00013999,2]
[329000687,1718052485282,-573.37346793,0.00013999,2]
[329000688,1718052485314,-300.0,0.00013999,2]
[329000689,1718052485350,-1854.00488369,0.00014,2]
[329000690,1718052485382,-6814.67,0.00014,2]
[329000691,1718052485416,-9999.99,0.00014,2]
[329000692,1718052540476,310686.85976589,0.00014,2]
[329000693,1718052541514,362.98346764,0.00014,2]
[329000694,1718052563575,389.85060408,0.00014,2]
[329000696,1718052613556,-300.0,0.00014999,2]
[329000697,1718052613586,-8277.46598904,0.00015,2]
[329000717,1718052632238,-530.01792,0.00015,2]
[329000718,1718052632598,-263.744,0.00015,2]
[329000719,1718052632611,-5275.6635,0.00015,2]
[329000720,1718052632699,-1649.82716699,0.00015,2]
[329000721,1718052632709,-169.8128533,0.00015269,2]
[329000722,1718052632720,-318.34,0.00015369,2]
[329000723,1718052632731,-1000.0,0.00015896,2]
[329000724,1718052632742,-420.0,0.00016416,2]
[329000725,1718052632753,-250.0,0.00016546,2]
[329000726,1718052632764,-250.0,0.00016546,2]
[329000727,1718052632775,-318.34,0.00017633,2]
[329000728,1718052632785,-1000.0,0.00017883,2]
[329000729,1718052632798,-587.0,0.00017966,2]
[329000730,1718052632808,-329.0,0.00019663,2]
[329000731,1718052632819,-1000.0,0.0001987,2]
[329000732,1718052632831,-318.34,0.00019897,2]
[329000733,1718052632842,-196.08,0.00019995,2]
[329000734,1718052632853,-1000.0,0.00021857,2]
[329000735,1718052632863,-250.0,0.00021918,2]
[329000736,1718052632874,-161.16,0.00021918,2]
[329000737,1718052632884,-318.34,0.00022161,2]
[329000738,1718052632895,-330.71097635,0.00022283,2]
[329000739,1718052632907,-1000.0,0.00023844,2]
[329000740,1718052632918,-514.9,0.00023891,2]
[329000741,1718052632929,-150.0,0.0002408,2]
[329000742,1718052632940,-156.08,0.00024384,2]
[329000743,1718052632950,-158.41,0.00024384,2]
[329000744,1718052632961,-318.34,0.00024425,2]
[329000745,1718052632971,-1886.41900336,0.00024798,2]
[329000746,1718052632985,-1418.30366966,0.00024798,2]
[329000747,1718052632995,-3304.72267299,0.00024798,2]
[329000748,1718052633006,-1223.50425831,0.00024798,2]
[329000749,1718052633035,-806.32653731,0.00024798,2]
[329000761,1718052638129,-2125.34602237,0.00021818,2]
[329000762,1718052638347,-1385.70037763,0.00021818,2]
[329000763,1718052638357,-1274.89187737,0.00024798,2]
[329000764,1718052638367,-3304.72267299,0.00024798,2]
[329000765,1718052638378,-3304.72267299,0.00024798,2]
[329000766,1718052638388,-3304.72267299,0.00024798,2]
[329000767,1718052638401,-3304.72267299,0.00024798,2]
[329000768,1718052638412,-1250.0,0.00025,2]
[329000769,1718052638423,-326.06894527,0.00025,2]
[329000770,1718052638433,-159.12531189,0.00025,2]
[329000771,1718052638444,-706.630092,0.00025,2]
[329000772,1718052638454,-225.24645646,0.00025,2]
[329000773,1718052638464,-1277.21264975,0.00025,2]
[329000774,1718052638475,-155.0,0.00025,2]
[329000775,1718052638487,-180.4802373,0.00025,2]
[329000776,1718052638501,-750.09570854,0.00025,2]
[329000777,1718052638512,-152.30070605,0.00026129,2]
[329000778,1718052638523,-153.16583406,0.00026171,2]
[329000779,1718052638534,-166.66666666,0.00026211,2]
[329000780,1718052638545,-12.21538622,0.00026344,2]
[329000781,1718052638560,-175.09977615,0.00026344,2]
[329000782,1718052638574,-324.90022385,0.00026344,2]
[329000783,1718052638586,-2979.82244914,0.00026344,2]
[329000784,1718052638598,-154.70928417,0.00026394,2]
[329000785,1718052638610,-154.70928417,0.0002643,2]
[329000786,1718052638622,-154.70928417,0.00026551,2]
[329000787,1718052638632,-164.18851961,0.00026663,2]
[329000788,1718052638643,-318.34,0.00026689,2]
[329000789,1718052638653,-151.79644714,0.00026707,2]
[329000790,1718052638664,-800.0,0.0002674,2]
[329000791,1718052638675,-166.25097854,0.00026779,2]
[329000792,1718052638691,-154.70928417,0.00026839,2]
[329000793,1718052638703,-158.0484392,0.00027,2]
[329000794,1718052638714,-1300.0,0.00027,2]
[329000795,1718052638727,-4030.76487032,0.00027,2]
[329000796,1718052638742,-1585.31781982,0.000272,2]
[329000797,1718052638758,-151.79644714,0.00027241,2]
[329000798,1718052638789,-807.52617473,0.0002739,2]
[329000799,1718052638800,-1923.57740605,0.00027397,2]
[329000800,1718052638814,-901.3376186,0.00027397,2]
[329000801,1718052638827,-1559.97189616,0.00027397,2]
[329000802,1718052638849,-2883.40437011,0.00027397,2]
[329000803,1718052638861,-774.19870908,0.00027397,2]
[329000804,1718052638872,-2485.09344287,0.000274,2]
[329000805,1718052638882,-165.81296261,0.00027517,2]
[329000806,1718052638893,-9797.084386,0.00027541,2]
[329000807,1718052638903,-154.70928417,0.00027591,2]
[329000808,1718052638915,-300.0,0.000276,2]
[329000809,1718052638926,-160.6958182,0.00027665,2]
[329000810,1718052638936,-9797.084386,0.00027885,2]
[329000811,1718052638947,-2330.96825382,0.000279,10]
[329000812,1718052638958,-43272.09208816,0.00028,30]
[329000813,1718052639078,-420.53167918,0.00028,30]
[329000996,1718052641359,-160.61,0.0002799,10]
[329000998,1718052641370,-925.80913718,0.00028,30]
[329001000,1718052641382,-705.3,0.00028,30]
[329001072,1718052642292,-187.258411,0.00027541,2]
[329001074,1718052642304,-3020.66852187,0.00027541,2]
[329001076,1718052642318,-1593.70559013,0.00027541,2]
[329001078,1718052642330,-8723.970214,0.00027541,2]
[329001080,1718052642349,-11537.66284909,0.00028,30]
[329001100,1718052642574,-4614.374112,0.00027885,2]
[329001102,1718052642585,-8723.970214,0.00027885,2]
[329001104,1718052642596,-12382.54178637,0.00028,30]
[329001113,1718052642684,-5000.0,0.00028,30]
[329001115,1718052642699,-1419.4739846,0.00028,30]
[329001118,1718052642712,-865.43927189,0.00028,30]
[329001125,1718052642787,-198.613319,0.00027541,2]
[329001127,1718052642799,-583.68941828,0.00028,30]
[329001129,1718052642813,-3812.46253125,0.00028,30]
[329001132,1718052642828,-19473.94022807,0.00028,30]
[329001166,1718052643161,-198.613319,0.00027885,2]
[329001168,1718052643172,-612.22699988,0.00028,30]
[329001197,1718052643465,-1308.00000413,0.00028,30]
[329001209,1718052643582,-2604.18085478,0.00028,30]
[329001217,1718052643671,-400.70588266,0.00028,30]
[329001219,1718052643689,-514.82885903,0.00028,30]
[329001222,1718052643702,-15066.56509634,0.00028,30]
[329001224,1718052643713,-1211.82,0.00028082,2]
[329001226,1718052643726,-350.28,0.00028082,2]
[329001228,1718052643738,-187.31516237,0.00028122,2]
[329001230,1718052643748,-3304.72267299,0.00028122,2]
[329001232,1718052643758,-165.81296261,0.00028201,2]
[329001234,1718052643769,-9797.084386,0.00028229,2]
[329001236,1718052643780,-4614.374112,0.00028229,2]
[329001238,1718052643790,-8723.970214,0.00028229,2]
[329001240,1718052643801,-198.613319,0.00028229,2]
[329001242,1718052643813,-795.14,0.00028395,2]
[329001243,1718052643823,-160.6958182,0.00028452,2]
[329001245,1718052643833,-154.70928417,0.00028487,2]
[329001247,1718052643843,-155.0,0.000285,2]
[329001249,1718052643853,-154.70928417,0.00028526,2]
[329001251,1718052643864,-154.70928417,0.00028549,2]
[329001253,1718052643874,-9797.084386,0.00028574,2]
[329001255,1718052643883,-4614.374112,0.00028574,2]
[329001257,1718052643894,-8723.970214,0.00028574,2]
[329001259,1718052643904,-507.27325417,0.00028657,2]
[329001261,1718052643915,-10040.4039939,0.0002868,2]
[329001263,1718052643925,-369.0,0.0002883,2]
[329001265,1718052643936,-323.26392683,0.00028832,2]
[329001267,1718052643947,-15671.4033,0.00028832,2]
[329001269,1718052643958,-159.19892589,0.00028841,2]
[329001271,1718052643968,-186.86237243,0.00028841,2]
[329001273,1718052643978,-346.7579612,0.00028841,2]
[329001275,1718052643988,-2647.7759263,0.00028899,2]
[329001277,1718052643999,-5364.97772368,0.00028899,2]
[329001278,1718052644009,-166.0081724,0.000289,2]
[329001281,1718052644019,-9797.084386,0.00028918,2]
[329001282,1718052644030,-4614.374112,0.00028918,2]
[329001284,1718052644040,-8723.970214,0.00028918,2]
[329001286,1718052644051,-187.258411,0.00028918,2]
[329001288,1718052644062,-255.63632153,0.0002893,2]
[329001290,1718052644073,-619.89251217,0.00028931,2]
[329001292,1718052644083,-396.57076707,0.00028931,2]
[329001294,1718052644093,-198.76906774,0.00028931,2]
[329001296,1718052644104,-307.08,0.00028932,2]
[329001298,1718052644114,-30356.74121526,0.00028932,2]
[329001301,1718052644127,-463.80189035,0.00028932,2]
[329001318,1718052644501,-198.613319,0.00028574,2]
[329001319,1718052644512,-198.613319,0.00028918,2]
[329001320,1718052644523,-1455.73325909,0.00028932,2]
[329001321,1718052644637,-13894.00000001,0.00028932,2]
[329001344,1718052646788,-3087.95762999,0.00015,2]
[329001345,1718052646801,-5126.98750723,0.00015,2]
[329001346,1718052646813,-188.647897,0.00027541,2]
[329001347,1718052646823,-188.647897,0.00028229,2]
[329001348,1718052646833,-188.647897,0.00028918,2]
[329001349,1718052646843,-61117.93383038,0.00028932,2]
[329001350,1718052646856,-9182.22117706,0.00028932,2]
[329001351,1718052647012,-765.51982749,0.00028932,2]
[329001352,1718052647025,-705.4,0.00028932,2]
[329001353,1718052647037,-4787.51253599,0.00028932,2]
[329001354,1718052647049,-500.0,0.00028932,2]
[329001355,1718052647063,-986.57230058,0.00028932,2]
[329001356,1718052647088,-695.08939,0.00028932,2]
[329001357,1718052647189,-1039.42928046,0.00028932,2]
[329001358,1718052647318,-8017.55275402,0.00028932,2]
[329001359,1718052647330,-572.85,0.00028932,2]
[329001360,1718052647433,-259.44000584,0.00028932,2]
[329001420,1718052648320,-0.40385077,0.00028932,2]
[329001422,1718052648333,-2831.76757743,0.00028932,2]
[329002138,1718053832837,-9221.0951137,0.00014998,2]
[329002139,1718053832848,-150.0,0.00014999,2]
[329002140,1718053832858,-2886.7269141,0.00014999,2]
[329002141,1718053832867,-10584.5653049,0.00015,2]
[329002142,1718053832879,-599.99999999,0.00015,2]
[329002143,1718053832888,-210.0,0.00016499,2]
[329002144,1718053832898,-150.99,0.00019452,2]
[329002145,1718053832908,-163.0,0.00019726,2]
[329002146,1718053832917,-313.0,0.0002069,2]
[329002147,1718053832926,-3591.77,0.0002069,8]
[329002148,1718053832936,-499.99,0.0002069,2]
[329002149,1718053832945,-616.92,0.0002069,2]
[329002150,1718053832954,-313.0,0.0002176,2]
[329002151,1718053832964,-313.0,0.0002283,2]
[329002152,1718053832975,-339.58,0.00023315,2]
[329002153,1718053832985,-2751.0,0.000234,2]
[329002154,1718053832995,-313.0,0.000239,2]
[329002155,1718053833004,-249.87,0.00024384,2]
[329002156,1718053833014,-313.0,0.0002497,2]
[329002157,1718053833023,-326.19007849,0.00025212,2]
[329002158,1718053833032,-311.36,0.00025213,2]
[329002159,1718053833042,-250.0,0.00025267,2]
[329002160,1718053833051,-172.19,0.00025394,2]
[329002161,1718053833061,-339.58,0.00025579,2]
[329002162,1718053833070,-653.36,0.00025696,2]
[329002163,1718053833079,-653.36,0.00025702,2]
[329002164,1718053833095,-653.36,0.00025709,2]
[329002165,1718053833104,-653.36,0.00025716,2]
[329002166,1718053833114,-653.36,0.00025723,2]